Cogmind - Beta 13 @@@ ROGUE MODE // 2024.05.03 @ 23:34:29 Player: void Result: Self-destructed Performance ------------- Evolutions (2) 1000 Regions Visited (5) 1000 Robots Destroyed (10) 50 Value Destroyed (239) 239 Prototype IDs (23) 460 Alien Tech Used (0) 0 Bonus (300) 300 TOTAL SCORE: 3049 Bonus ------- Aligned with FarCom 300 Cogmind --------- Core Integrity 402/550 Matter 190/300 Energy 315/315 System Corruption 1% Temperature Cool (9) Movement Walking (90) Location -8/Materials Parts ------- > --- POWER (2) -------- Light Ion Engine Improved Deuterium Engine > --- PROPULSION (2) --- Potential Leg Potential Leg > --- UTILITY (4) ------ Medium Storage Unit Advanced Terrain Scan Processor Seismic Detector Hardened Medium Armor Plating > --- WEAPON (3) ------- Small Laser Light Assault Rifle Light Assault Rifle > --- INVENTORY (10) --- Light Nuclear Core Aluminum Leg Cooling System Improved Terrain Scanner Small Laser Heavy Assault Rifle Flak Cannon Grenade Launcher Mining Laser Peak State ------------ > --- POWER ------------ Ion Engine Improved Deuterium Engine > --- PROPULSION ------- Potential Leg Potential Leg > --- UTILITY ---------- Medium Storage Unit Advanced Terrain Scan Processor Seismic Detector Hardened Medium Armor Plating > --- WEAPON ----------- Small Laser Heavy Assault Rifle Flak Cannon > --- INVENTORY -------- Light Ion Engine Aluminum Leg Improved Terrain Scanner Small Laser Light Assault Rifle Light Assault Rifle Grenade Launcher Mining Laser [Rating: 41] Favorites ----------- Power Ion Engine Engine Ion Engine Propulsion Potential Leg Leg Potential Leg Utility Seismic Detector Device Seismic Detector Storage Medium Storage Unit Processor Advanced Terrain Scan Processor Protection Hardened Medium Armor Plating Weapon Small Laser Energy Gun Small Laser Ballistic Gun Light Assault Rifle Ballistic Cannon Flak Cannon Build | -11 -10 -10 -10 -9 -8 ------- Run | Yrd Mat Min Exi Min Mat Slots Evolved 4 | . . . . . 4 Power 1 | . . . . . 1 Propulsion . | . . . . . . Utility 2 | . . . . . 2 Weapon 1 | . . . . . 1 Parts Attached 20 | 7 . . 3 1 9 Power 4 | 1 . . . 1 2 Engine 4 | 1 . . . 1 2 Core . | . . . . . . Reactor . | . . . . . . Propulsion 4 | 2 . . 2 . . Treads . | . . . . . . Leg 4 | 2 . . 2 . . Wheel . | . . . . . . Hover . | . . . . . . Flight . | . . . . . . Utility 5 | 2 . . 1 . 2 Device 1 | 1 . . . . . Storage 2 | 1 . . 1 . . Processor 1 | . . . . . 1 Hackware . | . . . . . . Protection 1 | . . . . . 1 Artifact . | . . . . . . Weapon 7 | 2 . . . . 5 Energy Gun 3 | 2 . . . . 1 Energy Cannon . | . . . . . . Ballistic Gun 3 | . . . . . 3 Ballistic Cannon 1 | . . . . . 1 Launcher . | . . . . . . Special Weapon . | . . . . . . Impact Weapon . | . . . . . . Slashing Weapon . | . . . . . . Piercing Weapon . | . . . . . . Special Melee Weapon . | . . . . . . Unidentified Prototypes . | . . . . . . Parts Lost . | . . . . . . Power . | . . . . . . Propulsion . | . . . . . . Utility . | . . . . . . Weapon . | . . . . . . Highest Loss Streak . | . . . . . . To Critical Strikes . | . . . . . . Average Slot Usage (%) 98 | . 100 100 100 100 95 Engine 14 | . 14 14 14 14 15 Leg 24 | . 28 28 28 28 18 Device 12 | . 14 14 14 14 9 Storage 12 | . 14 14 14 14 9 Processor 3 | . . . . . 9 Protection 2 | . . . . . 7 Energy Gun 21 | . 28 28 28 28 11 Ballistic Gun 5 | . . . . . 14 Naked Turns . | . . . . . . Heaviest Build 44 | 13 13 13 18 23 44 Greatest Support 60 | 20 20 20 60 60 60 Greatest Overweight (x) . | . . . . . . Average Overweight (x) . | . . . . . . Largest Inventory Capacity 10 | 8 8 8 10 10 10 Average Capacity 9 | 7 8 8 8 10 10 Most Carried 10 | 2 4 6 8 10 10 Average Carried 7 | 1 2 5 7 9 8 Final Capacity 10 | 8 8 8 10 10 10 Final Carried 10 | 2 4 6 8 10 9 Class Distribution -------------------- 67% | Mutant 32% | Skirmisher Dominant Class ---------------- Mutant | -10/Materials Mutant | -10/Mines Mutant | -10/Exiles Mutant | -9/Mines Skirmisher | -8/Materials Resources | -11 -10 -10 -10 -9 -8 ----------- Run | Yrd Mat Min Exi Min Mat Matter Collected 511 | 244 . 26 . 22 219 Remotely . | . . . . . . Salvage Created 245 | 63 . 44 . . 138 Parts 19 | 7 . 7 . . 5 Haulers Intercepted . | . . . . . . Recyclers Shooed . | . . . . . . Parts Field Recycled . | . . . . . . Retrieved Matter . | . . . . . . Parts Self-Destructed . | . . . . . . Prevented . | . . . . . . Kills | -11 -10 -10 -10 -9 -8 ------- Run | Yrd Mat Min Exi Min Mat Combat Hostiles Destroyed 7 | . . 3 . . 4 Guns 6 | . . 3 . . 3 Cannons 1 | . . . . . 1 Classes Destroyed 3 | 1 . 1 . . 1 Tunneler 3 | 3 . . . . . Swarmer 3 | . . 3 . . . Grunt 4 | . . . . . 4 Best Kill Streak 3 | 2 . 3 . . 3 Combat Bots Only 3 | . . 3 . . 3 Max Kills in Single Turn 1 | 1 . 1 . . 1 Gunslinging . | . . . . . . Exploded . | . . . . . . Melee . | . . . . . . Uniques/NPCs Destroyed . | . . . . . . Combat | -11 -10 -10 -10 -9 -8 -------- Run | Yrd Mat Min Exi Min Mat Hostile Shots Fired 34 | . . 6 . . 28 Missed 9 | . . 2 . . 7 Damage Taken 469 | . . 31 . 24 414 Core 173 | . . 9 . 16 148 Absorbed by Shields . | . . . . . . Core Remaining (%) 95 | 100 . . . 90 . Volleys Fired 30 | 5 . 3 . . 22 Largest 3 | 2 . 2 . . 3 Hottest 124 | 80 . 80 . . 124 Shots Fired 69 | 10 . 6 . . 53 Gun 57 | 10 . 6 . . 41 Cannon 12 | . . . . . 12 Launcher . | . . . . . . Special . | . . . . . . Kinetic 30 | . . . . . 30 Thermal 39 | 10 . 6 . . 23 Explosive . | . . . . . . Electromagnetic . | . . . . . . Robot Hit Streak 6 | 2 . 2 . . 6 Robot Miss Streak 10 | 2 . 2 . . 10 Penetration Max . | . . . . . . Secondary Targets 1 | . . 1 . . . Max Gunslinging Chain 1 | . . 1 . . . Shots Hit Robots 37 | 4 . 3 . . 30 Core Hits 25 | 3 . 3 . . 19 Critical Kills . | . . . . . . Critical Parts Destroyed . | . . . . . . Critical Strikes . | . . . . . . Melee Attacks . | . . . . . . Impact . | . . . . . . Slashing . | . . . . . . Piercing . | . . . . . . Sneak Attacks . | . . . . . . Combat Hostiles . | . . . . . . Follow-up Attacks . | . . . . . . Damage Inflicted 473 | 43 . 35 . . 395 Guns 297 | 43 . 35 . . 219 Cannons 176 | . . . . . 176 Explosions . | . . . . . . Melee . | . . . . . . Ramming . | . . . . . . Kinetic 238 | . . . . . 238 Thermal 235 | 43 . 35 . . 157 Explosive . | . . . . . . Electromagnetic . | . . . . . . Impact . | . . . . . . Slashing . | . . . . . . Piercing . | . . . . . . Highest Corruption 1 | . . . . . 1 Average Corruption 1 | . . . . . 1 Corruption Purged . | . . . . . . Corruption Blocked . | . . . . . . Effects 1 | . . . . . 1 Matter Fused 1 | . . . . . 1 Overload Shots . | . . . . . . Overflow Damage . | . . . . . . Projectiles . | . . . . . . Explosions . | . . . . . . Melee . | . . . . . . Knockbacks 4 | . . . . . 4 Impact . | . . . . . . Kinetic 3 | . . . . . 3 Secondary 1 | . . . . . 1 Self-Inflicted Damage . | . . . . . . Shots . | . . . . . . Rammed . | . . . . . . Targets Rammed . | . . . . . . Kicked . | . . . . . . Crushed . | . . . . . . Highest Temperature 527 | 72 . 54 . . 527 Average Temperature 228 | 33 . 29 . . 279 Received Heat Transfer 207 | . . . . . 207 Effects 25 | . . . . . 25 Shutdowns 4 | . . . . . 4 Energy Bleed 2 | . . . . . 2 Interference 5 | . . . . . 5 Matter Decay 4 | . . . . . 4 Short Circuit 2 | . . . . . 2 Damage (minor) 1 | . . . . . 1 Damage (major) 6 | . . . . . 6 Damage (core) 1 | . . . . . 1 Siege Activations . | . . . . . . Robots Corrupted . | . . . . . . Combat Hostiles . | . . . . . . Parts Fried . | . . . . . . Impact Corruptions . | . . . . . . Robots Melted . | . . . . . . Combat Hostiles . | . . . . . . Parts Melted 1 | . . 1 . . . Heat Transferred 525 | 100 . 75 . . 350 Parts Sabotaged . | . . . . . . Parts Stolen . | . . . . . . Parts Stripped . | . . . . . . Power Chain Reactions . | . . . . . . Alert | -11 -10 -10 -10 -9 -8 ------- Run | Yrd Mat Min Exi Min Mat Peak Influence 144 | 15 39 100 . . 144 Initial 15 | . 9 15 . . . Average 59 | 5 24 98 . . 85 Maximum Alert Level . | . . . . . . Low Security (%) 100 | 100 100 100 . 100 100 Level 1 . | . . . . . . Level 2 . | . . . . . . Level 3 . | . . . . . . Level 4 . | . . . . . . Level 5 . | . . . . . . High Security . | . . . . . . Max Security . | . . . . . . Squads Dispatched 6 | . . . . . 6 Investigation 3 | . . . . . 3 Extermination . | . . . . . . Reinforcement . | . . . . . . Assault . | . . . . . . Garrison 3 | . . . . . 3 Intercept . | . . . . . . Searches Triggered . | . . . . . . Construction Impeded . | . . . . . . Haulers Reinforced . | . . . . . . Active Scanning Responses . | . . . . . . Cargo Convoy Interrupts . | . . . . . . Stealth | -11 -10 -10 -10 -9 -8 --------- Run | Yrd Mat Min Exi Min Mat Distress Signals . | . . . . . . Communications Jammed . | . . . . . . Distress Signals . | . . . . . . Times Spotted 17 | . 3 4 . . 10 Peak Tracking Total 4 | . 3 2 . . 4 Tactical Retreats 1 | . . . . . 1 Traps | -11 -10 -10 -10 -9 -8 ------- Run | Yrd Mat Min Exi Min Mat Traps Triggered 1 | . . . . 1 . Indirectly . | . . . . . . Trap Hack Attempts . | . . . . . . Triggered . | . . . . . . Disarmed . | . . . . . . Reprogrammed . | . . . . . . Reused . | . . . . . . Traps Extracted . | . . . . . . Installed . | . . . . . . Triggered . | . . . . . . Machines | -11 -10 -10 -10 -9 -8 ---------- Run | Yrd Mat Min Exi Min Mat Machines Disabled . | . . . . . . Max in Single Turn . | . . . . . . Machines Repaired . | . . . . . . Machines Dismantled . | . . . . . . Machines Sabotaged . | . . . . . . Overloaded Fab Kills . | . . . . . . Hacking | -11 -10 -10 -10 -9 -8 --------- Run | Yrd Mat Min Exi Min Mat Machines Accessed 10 | . 2 . 2 1 5 Terminals 6 | . 2 . . . 4 Fabricators . | . . . . . . Repair Stations . | . . . . . . Recycling Units . | . . . . . . Scanalyzers . | . . . . . . Garrison Access 1 | . . . . . 1 Total Hacks 14 | . 2 . 2 1 9 Successful 5 | . 1 . 2 1 1 Failed 9 | . 1 . . . 8 Catastrophic 4 | . . . . . 4 Database Lockouts . | . . . . . . Manual 11 | . 2 . 2 . 7 Terminals 9 | . 2 . . . 7 Fabricators . | . . . . . . Repair Stations . | . . . . . . Recycling Units . | . . . . . . Scanalyzers . | . . . . . . Garrison Access 2 | . . . . . 2 Terminal Hacks 5 | . 1 . 2 1 1 Record 1 | . . . 1 . . Open Door 1 | . . . . 1 . Branch Access Points 2 | . 1 . . . 1 Derelict Proto ID Bank 1 | . . . 1 . . Fabricator Hacks . | . . . . . . Repair Station Hacks . | . . . . . . Recycling Unit Hacks . | . . . . . . Scanalyzer . | . . . . . . Garrison Access Hacks . | . . . . . . Unauthorized Hacks . | . . . . . . Terminals . | . . . . . . Fabricators . | . . . . . . Repair Stations . | . . . . . . Recycling Units . | . . . . . . Scanalyzers . | . . . . . . Garrison Access . | . . . . . . Data Cores Recovered . | . . . . . . Used . | . . . . . . Hacking Detections 5 | . . . . . 5 Full Trace Events 3 | . . . . . 3 Feedback Events 1 | . . . . . 1 Corruption 1 | . . . . . 1 Feedback Blocked . | . . . . . . Robot Schematics Acquired . | . . . . . . Robots Built . | . . . . . . Authchips . | . . . . . . Time . | . . . . . . Total Robot Build Rating . | . . . . . . Part Schematics Acquired . | . . . . . . Parts Built . | . . . . . . Authchips . | . . . . . . Time . | . . . . . . Total Part Build Rating . | . . . . . . Parts Repaired . | . . . . . . Time . | . . . . . . Parts Recycled . | . . . . . . Recycled Matter . | . . . . . . Retrieved Matter . | . . . . . . Retrieved Components . | . . . . . . Parts Scanalyzed . | . . . . . . Part Schematics Acquired . | . . . . . . Parts Damaged . | . . . . . . Bothacking | -11 -10 -10 -10 -9 -8 ------------ Run | Yrd Mat Min Exi Min Mat Used RIF Installer . | . . . . . . Robots Hacked . | . . . . . . Non-combat . | . . . . . . Combat . | . . . . . . Robot Hacks Applied . | . . . . . . Relay Couplers Released . | . . . . . . Fabnet Peak Effective % . | . . . . . . Robots Rewired . | . . . . . . Allies Hacked . | . . . . . . Hacks Repelled . | . . . . . . Allies | -11 -10 -10 -10 -9 -8 -------- Run | Yrd Mat Min Exi Min Mat Total Allies . | . . . . . . Largest Group . | . . . . . . Highest-Rated Group . | . . . . . . Highest-Rated Ally . | . . . . . . Total Orders . | . . . . . . Ally Attacks . | . . . . . . Total Damage . | . . . . . . Kills . | . . . . . . Allies Corrupted . | . . . . . . Allies Melted . | . . . . . . Intel | -11 -10 -10 -10 -9 -8 ------- Run | Yrd Mat Min Exi Min Mat Robot Analysis Total . | . . . . . . Derelict Logs Recovered 1 | . . 1 . . . Drone Launches . | . . . . . . Drone Recoveries . | . . . . . . Exploration | -11 -10 -10 -10 -9 -8 ------------- Run | Yrd Mat Min Exi Min Mat Turns Passed 1280 | 76 119 167 323 155 440 Spaces Moved 928 | 43 98 131 313 166 177 Core 3 | 3 . . . . . Treads . | . . . . . . Legs 925 | 40 98 131 313 166 177 Wheels . | . . . . . . Hover . | . . . . . . Flight . | . . . . . . Fastest Speed 50 | 50 120 120 90 90 90 Average Speed 102 | 115 120 120 101 90 90 Slowest Speed 120 | 120 120 120 120 90 90 Overloaded Moves . | . . . . . . Propulsion Burnouts . | . . . . . . Robots Hopped . | . . . . . . Cave-ins Triggered . | . . . . . . Exploration Rate (%) 29 | 4 30 33 61 35 15 Regions Visited 5 Branch Regions 3 Pre-discovered Areas 2 | . . 1 1 . . Known Exits Taken 1 | . 1 . . . . Unknown Exits Taken 4 | 1 . 1 1 1 . Scrap Searched 2 | . . 1 . 1 . Spaces Dug . | . . . . . . Terrain Destroyed . | . . . . . . Melee . | . . . . . . Projectile . | . . . . . . AOE . | . . . . . . Terrain Rammed . | . . . . . . Walls Destroyed . | . . . . . . Machines Disabled . | . . . . . . Actions | -11 -10 -10 -10 -9 -8 --------- Run | Yrd Mat Min Exi Min Mat Total 1192 | 56 99 135 316 171 415 Wait 204 | . . . . 2 202 Move 923 | 42 97 130 312 165 177 Hop . | . . . . . . Pick Up 12 | 2 2 2 . 2 4 Fast Attach 7 | 7 . . . . . Attach 4 | . . . . . 4 Detach . | . . . . . . Swap 9 | . . . 3 1 5 Drop 3 | . . . 1 1 1 Fire 30 | 5 . 3 . . 22 Melee . | . . . . . . Ram . | . . . . . . Kick . | . . . . . . Crush . | . . . . . . Escape Stasis . | . . . . . . Rewire . | . . . . . . Trap . | . . . . . . Miscellaneous . | . . . . . . Route ------- -11/Scrapyard -10/Materials (discovered 2 exits: *Min x2) -10/Mines -10/Exiles (discovered 2 exits: *Min x2) -9/Mines -8/Materials History --------- Turn | Location | Event 4 | -11/Scrapyard | Discovered new exit (range 16) 77 | -11/Scrapyard | Entered Materials 143 | -10/Materials | Discovered new exit (range 14) 147 | -10/Materials | Identified exit to Mines 196 | -10/Materials | Entered Mines 249 | -10/Mines | Assembled infested the area 280 | -10/Mines | Learned location of Storage (-7) 300 | -10/Mines | Build established: Mutant 359 | -10/Mines | Deemed a non-threat by the Exiles lab entrance 359 | -10/Mines | Discovered new exit (range 5) 363 | -10/Mines | Entered Exiles 384 | -10/Exiles | Discovered new exit (range 15) 407 | -10/Exiles | Met 8R-AWN 426 | -10/Exiles | Met EX-HEX 461 | -10/Exiles | Met EX-BIN 475 | -10/Exiles | Aligned with FarCom system 476 | -10/Exiles | Given EX-Vault access code 504 | -10/Exiles | Opened EX-Vault 512 | -10/Exiles | Found Potential Leg 515 | -10/Exiles | Found Potential Leg 536 | -10/Exiles | Warned to stay clear of 0b10 Research branches 562 | -10/Exiles | Met EX-DEC 573 | -10/Exiles | Learned location of Zion (-6) 616 | -10/Exiles | Discovered new exit (range 14) 686 | -10/Exiles | Left Exiles lab with Potential Leg 686 | -10/Exiles | Entered Mines 692 | -9/Mines | Met a Derelict who couldn't figure out how to use a Trap Extractor 730 | -9/Mines | Received a Rocket Launcher from a helpful Derelict 836 | -9/Mines | Discovered new exit (range 5) 841 | -9/Mines | Entered Materials 841 | -8/Materials | Evolved 4 slots: Power x1, Utility x2, Weapon x1 958 | -8/Materials | Garrison activated, responded to threat 1281 | -8/Materials | Self-destructed Last Messages --------------- Overheating: System interference. Sml. Laser temporarily disabled. Adv. Terrain Scan Processor temporarily disabled. Flak Cannon temporarily disabled. Overheating: Energy bleed (-49). G-47 Trooper destroyed. Power failure, Imp. Deuterium Engine shutdown. Overheating: Matter decay (-10). Acquired 35 matter. K-01 Serf collects debris. Acquired 53 matter. Acquired Lgt. Nuclear Core. Acquired 46 matter. Dropped Broken Ion Engine. Connecting with Terminal... ALERT: Suspicious activity at Terminal M009. Dispatching Investigation squad. Connecting with Terminal... Acquired Cooling System. System corrupted: Matter fused (-10). Map ----- +----------------------------------------------------+ | ?????????????????????????????????????????????????? | | ?????????????????????????????????????????????????? | | ?????????????????????????????????????????????????? | | ?????????????????????????????????????????????????? | | ?????????????????????????????????????????????????? | | ?????????????????????????????????????????????????? | | ?????????????????????????????????????????????????? | | ?????????????????????????????????????????????????? | | ????????????????????????o????????????????????????? | | ?????????????????????????????????????????????????? | | ?????????????????????????????????????????????????? | | ??????????????????????????g????????w?????????????? | | ????????????????????????????g????????????????????? | | ?????????????????????????????????????????????????? | | ?????????????????????????????????????????????????? | | ?????????????????????????????????????????????????? | | ?????????????????????????????????????????????????? | | ?????????????????????????????????????????????????? | | ?????????????????????????????????????????????????? | | ????????????????????????????h????????????????????? | | ?????????????######+####?????????????????????????? | | ?????????????? ?????????????????????????? | | ???????????????? ?????????????????????????? | | ????????????????? w?????????????????????????? | | ??????????????????# ###########???????????????? | | ??????????????????# # @ #???????????????? | | ??????????????????# #g #???????????????? | | ??????????????????# g #???????????????? | | ??????????????????# # #???????????????? | | ??????????????????# ######+####???????????????? | | ??????????????????# ###### #??????????????????? | | ??????????????????# ##?????????????????? | | ????????????????### #?????????????????? | | ????????????????#"" #?????????????????? | | ????????????????#"T h #?????????????????? | | ????????????????#"" ^ #?????????????????? | | ????????????????### #?????????????????? | | ?????????????????#T ^ #?????????????????? | | ?????????????????## """ #?????????????????? | | ?????????????????#T """ #?????????????????? | | ?????????????????## "" ^ +?????????????????? | | ??????????????????# "" #?????????????????? | | ??????????????????# """ #???????########### | | ??????????????????# !! #???????# """ """ | | ??????????????????# ! #???????# """ """ | | ??????????????????# ###### #???????# """ """ | | ??????????????????# #????#*#???????# | | ??????????????????###+####?###+####????# | | ??????????????????# #?# = #????# | | ??????????????????# #?# #????# | +----------------------------------------------------+ Best States ------------- Heat Dissipation 31 Energy Generation 21 Energy Capacity 440 Matter Stores 300 Matter Capacity 300 Sight Range 16 Terrain Scan Density 210 Armor Coverage 225 Evasion (%) 57 Item Schematics ----------------- None Robot Schematics ------------------ None Fabricated ------------ Nothing Alien Tech Used ----------------- None Achievements -------------- None Challenges ------------ None Game ------ Seed CooledCloakStick Manual? 0 Play Time 00:22:47 Cumulative 21.4 hours Start 2024.05.03 @ 22:59:18 End 2024.05.03 @ 23:34:29 Sessions 1 Manual Loads 0 Difficulty Rogue Special Mode None Game No. 47 Rogue 39 Adventurer 8 Explorer 0 Win Type - Total 0 Types 0/0/0/0/0/0/0/0/0 Lore% 8 Gallery% 26 Achievement% 19 Wizard Run 0 Options --------- Layout 0 ASCII 0 Keyboard 0 Movement Mouse Keybinds 0 Fullscreen 2 Font 18/SmallcapsGlow Map View 76x50 Zoom Use 1% Tactical HUD 0 Map Filters NONE Filters NONE Steam 1 RUN: 97f719fa-5f9d-4db4-b330-77c6fe0bc42d